Cogmind - Beta 16.1 @@@ ROGUE MODE // 2026.03.22 @ 13:46:16 Player: Microwavium Result: Destroyed by S-10 Pest with Light Assault Rifle Performance ------------- Evolutions (1) 500 Regions Visited (2) 400 Robots Destroyed (8) 40 Value Destroyed (151) 151 Prototype IDs (0) 0 Alien Tech Used (0) 0 Bonus (0) 0 TOTAL SCORE: 1091 Bonus ------- None Cogmind --------- Core Integrity 0/400 Matter 260/300 Energy 250/250 System Corruption 0% Temperature Cool (0) Movement Core (200) Ox3 Location -9/Materials Parts ------- > --- POWER (2) -------- Ion Engine > --- PROPULSION (2) --- (None) > --- UTILITY (2) ------ Small Storage Unit Propulsion Shielding > --- WEAPON (3) ------- Small Laser > --- INVENTORY (8) ---- Small Storage Unit Large Matter Pod (34) Targeting Computer Peak State ------------ > --- POWER ------------ Ion Engine Light Ion Engine > --- PROPULSION ------- Light Treads Light Treads > --- UTILITY ---------- Small Storage Unit Terrain Scanner > --- WEAPON ----------- EM Pulse Gun Medium Laser Beam Cannon > --- INVENTORY -------- Ion Engine Small Storage Unit Targeting Computer Propulsion Shielding EM Pulse Gun [Rating: 9] Favorites ----------- Power Ion Engine Engine Ion Engine Propulsion Light Treads Treads Light Treads Utility Small Storage Unit Device Terrain Scanner Storage Small Storage Unit Protection Propulsion Shielding Weapon EM Pulse Gun Energy Gun EM Pulse Gun Energy Cannon Beam Cannon Build | -11 -10 -9 ------- Run | Yrd Mat Mat Slots Evolved 2 | . . 2 Power 1 | . . 1 Propulsion . | . . . Utility . | . . . Weapon 1 | . . 1 Parts Attached 14 | 6 1 7 Power 3 | 1 . 2 Engine 3 | 1 . 2 Core . | . . . Reactor . | . . . Propulsion 2 | 2 . . Treads 2 | 2 . . Leg . | . . . Wheel . | . . . Hover . | . . . Flight . | . . . Utility 4 | 1 1 2 Device 1 | . 1 . Storage 2 | 1 . 1 Processor . | . . . Hackware . | . . . Protection 1 | . . 1 Artifact . | . . . Weapon 5 | 2 . 3 Energy Gun 4 | 2 . 2 Energy Cannon 1 | . . 1 Ballistic Gun . | . . . Ballistic Cannon . | . . . Launcher . | . . . Special Weapon . | . . . Impact Weapon . | . . . Slashing Weapon . | . . . Piercing Weapon . | . . . Special Melee Weapon . | . . . Unidentified Prototypes . | . . . Parts Lost 9 | . . 9 Power 2 | . . 2 Propulsion 2 | . . 2 Utility 1 | . . 1 Weapon 4 | . . 4 Highest Loss Streak 9 | . . 9 To Critical Strikes . | . . . Average Backups 4 | 2 4 4 Power 1 | 1 1 . Propulsion . | . . . Utility 1 | . 1 3 Weapon . | . 1 . Tool/Special . | . . . Unused Backups 1 | . . 1 Power . | . . . Propulsion . | . . . Utility 1 | . . 1 Weapon . | . . . Tool/Special . | . . . Average Slot Usage (%) 87 | . 95 67 Engine 14 | . 14 15 Treads 23 | . 28 12 Device 8 | . 9 5 Storage 13 | . 14 11 Energy Gun 24 | . 28 15 Energy Cannon 1 | . . 5 Peak Build Rating 9 | 6 7 9 Average Rating 6 | 3 6 6 On Entrance 4 | . 6 7 Avg Prop Armor Cover (%) 22 | 22 . . Naked Turns . | . . . Heaviest Build 21 | 14 15 21 Greatest Support 40 | 40 40 40 Greatest Overweight (x) 3 | 1 . 3 Average Overweight (x) . | . . 1 Largest Inventory Capacity 8 | 8 8 8 Average Capacity 7 | 6 8 8 Most Carried 7 | 5 7 6 Average Carried 4 | 2 4 4 Final Capacity 8 | 8 8 8 Final Carried 7 | 2 7 3 Class Distribution -------------------- 86% | Mutant 13% | Skirmisher Dominant Class ---------------- Mutant | -10/Materials Mutant | -9/Materials Resources | -11 -10 -9 ----------- Run | Yrd Mat Mat Matter Collected 364 | 227 43 94 Remotely . | . . . Salvage Created 201 | . 55 146 Parts 13 | . 3 10 Haulers Intercepted . | . . . Recyclers Shooed . | . . . Parts Field Recycled . | . . . Retrieved Matter . | . . . Parts Self-Destructed . | . . . Prevented . | . . . Parts Restored . | . . . Kills | -11 -10 -9 ------- Run | Yrd Mat Mat Combat Hostiles Destroyed 8 | . 3 5 Guns 5 | . . 5 AOE 3 | . 3 . Classes Destroyed 2 | . 1 1 Swarmer 6 | . 3 3 Grunt 2 | . . 2 Best Kill Streak 3 | . 3 2 Combat Bots Only 3 | . 3 2 Max Kills in Single Turn 3 | . 3 1 Gunslinging . | . . . Exploded 3 | . 3 . Melee . | . . . Uniques/NPCs Destroyed . | . . . Combat | -11 -10 -9 -------- Run | Yrd Mat Mat Hostile Shots Fired 110 | . 7 103 Missed 29 | . 1 28 Hits 81 | . 6 75 Projectile 81 | . 6 75 Damage Taken 1002 | . 48 954 Core 408 | . 7 401 Absorbed by Shields . | . . . Core Remaining (%) 98 | 100 97 . Volleys Fired 27 | . 4 23 Largest 3 | . 2 3 Hottest 150 | . 90 150 Shots Fired 54 | . 8 46 Gun 42 | . 8 34 Cannon 12 | . . 12 Launcher . | . . . Special . | . . . Kinetic . | . . . Thermal 31 | . 4 27 Explosive . | . . . Electromagnetic 23 | . 4 19 Robot Hit Streak 4 | . 2 4 Robot Miss Streak 8 | . 5 8 Penetration Max . | . . . Secondary Targets 1 | . . 1 Max Gunslinging Chain 1 | . . 1 Shots Hit Robots 20 | . 2 18 Core Hits 10 | . 3 7 Critical Kills . | . . . Critical Parts Destroyed . | . . . Critical Strikes . | . . . Melee Attacks . | . . . Impact . | . . . Slashing . | . . . Piercing . | . . . Sneak Attacks . | . . . Combat Hostiles . | . . . Follow-up Attacks . | . . . Damage Inflicted 393 | . 121 272 Guns 213 | . 10 203 Cannons 69 | . . 69 Explosions 111 | . 111 . Melee . | . . . Ramming . | . . . Kinetic . | . . . Thermal 263 | . 111 152 Explosive . | . . . Electromagnetic 130 | . 10 120 Impact . | . . . Slashing . | . . . Piercing . | . . . Highest Corruption . | . . . Average Corruption . | . . . Corruption Purged . | . . . Corruption Blocked . | . . . Overload Shots . | . . . Overflow Damage 5 | . . 5 Projectiles 5 | . . 5 Explosions . | . . . Melee . | . . . Knockbacks . | . . . Impact . | . . . Kinetic . | . . . Secondary . | . . . Self-Inflicted Damage . | . . . Shots . | . . . Rammed . | . . . Targets Rammed . | . . . Kicked . | . . . Crushed . | . . . Highest Temperature 840 | . 30 840 Average Temperature 389 | . 18 452 Received Heat Transfer 123 | . . 123 Effects 34 | . . 34 Shutdowns 9 | . . 9 Energy Bleed 1 | . . 1 Interference 1 | . . 1 Matter Decay 2 | . . 2 Short Circuit 4 | . . 4 Damage (minor) 4 | . . 4 Damage (major) 8 | . . 8 Damage (core) 5 | . . 5 Siege Activations . | . . . Martial Activations . | . . . Shielding Activations . | . . . Robots Disrupted . | . . . Combat Hostiles . | . . . Robots Corrupted . | . . . Combat Hostiles . | . . . Parts Fried . | . . . Impact Corruptions . | . . . Robots Melted . | . . . Combat Hostiles . | . . . Parts Melted 1 | . . 1 Heat Transferred 483 | . 100 383 Parts Sabotaged . | . . . Parts Stolen . | . . . Parts Stripped . | . . . Power Chain Reactions 1 | . 1 . Alert | -11 -10 -9 ------- Run | Yrd Mat Mat Maximum Alert Level . | . . . Low Security (%) 100 | 100 100 100 Level 1 . | . . . Level 2 . | . . . Level 3 . | . . . Level 4 . | . . . Level 5 . | . . . High Security . | . . . Max Security . | . . . Peak Influence 91 | . 91 40 Initial . | . . . Average 15 | . 21 9 Influence Increases 217 | . 91 126 Destroy 0b10 Robot/C 160 | . 60 100 Destroy Leader 20 | . 10 10 Disable Machine 15 | . 15 . Destroy Structure 7 | . 6 1 Partial Spotted 15 | . . 15 Influence Decreases 202 | . 91 111 Time Decay 132 | . 91 41 Lost Part 70 | . . 70 Squads Dispatched . | . . . Investigation . | . . . Extermination . | . . . Reinforcement . | . . . Assault . | . . . Garrison . | . . . Intercept . | . . . Searches Triggered . | . . . Construction Impeded . | . . . Haulers Reinforced . | . . . Active Scanning Responses . | . . . Cargo Convoy Interrupts . | . . . Stealth | -11 -10 -9 --------- Run | Yrd Mat Mat Distress Signals 1 | . . 1 Communications Jammed . | . . . Distress Signals . | . . . Times Spotted 18 | . 6 12 Peak Tracking Total 5 | . 3 5 Tactical Retreats . | . . . Traps | -11 -10 -9 ------- Run | Yrd Mat Mat Traps Triggered . | . . . Indirectly . | . . . Trap Hack Attempts . | . . . Triggered . | . . . Disarmed . | . . . Reprogrammed . | . . . Reused . | . . . Traps Extracted . | . . . Installed . | . . . Triggered . | . . . Machines | -11 -10 -9 ---------- Run | Yrd Mat Mat Machines Disabled 1 | . 1 . Max in Single Turn 1 | . 1 . Machines Repaired . | . . . Machines Dismantled . | . . . Machines Sabotaged . | . . . Overloaded Fab Kills . | . . . Hacking | -11 -10 -9 --------- Run | Yrd Mat Mat Machines Accessed . | . . . Terminals . | . . . Fabricators . | . . . Repair Stations . | . . . Recycling Units . | . . . Scanalyzers . | . . . Garrison Access . | . . . Total Hacks . | . . . Successful . | . . . Failed . | . . . Catastrophic . | . . . Database Lockouts . | . . . Manual . | . . . Terminals . | . . . Fabricators . | . . . Repair Stations . | . . . Recycling Units . | . . . Scanalyzers . | . . . Garrison Access . | . . . Terminal Hacks . | . . . Fabricator Hacks . | . . . Repair Station Hacks . | . . . Recycling Unit Hacks . | . . . Scanalyzer . | . . . Garrison Access Hacks . | . . . Unauthorized Hacks . | . . . Terminals . | . . . Fabricators . | . . . Repair Stations . | . . . Recycling Units . | . . . Scanalyzers . | . . . Garrison Access . | . . . Data Cores Recovered . | . . . Used . | . . . Hacking Detections . | . . . Full Trace Events . | . . . Feedback Events . | . . . Feedback Blocked . | . . . Robot Schematics Acquired . | . . . Robots Built . | . . . Authchips . | . . . Time . | . . . Total Robot Build Rating . | . . . Part Schematics Acquired . | . . . Parts Built . | . . . Authchips . | . . . Time . | . . . Total Part Build Rating . | . . . Part Studies Acquired . | . . . Parts Repaired . | . . . Time . | . . . Parts Recycled . | . . . Recycled Matter . | . . . Retrieved Matter . | . . . Retrieved Components . | . . . Parts Scanalyzed . | . . . Part Schematics Acquired . | . . . Parts Damaged . | . . . Bothacking | -11 -10 -9 ------------ Run | Yrd Mat Mat Used RIF Installer . | . . . Robots Hacked . | . . . Non-combat . | . . . Combat . | . . . Robot Hacks Applied . | . . . Relay Couplers Released . | . . . Fabnet Peak Effective % . | . . . Robots Rewired . | . . . Allies Hacked . | . . . Hacks Repelled . | . . . Allies | -11 -10 -9 -------- Run | Yrd Mat Mat Total Allies . | . . . Largest Group . | . . . Highest-Rated Group . | . . . Highest-Rated Ally . | . . . Total Orders . | . . . Ally Attacks . | . . . Total Damage . | . . . Kills . | . . . Allies Corrupted . | . . . Allies Melted . | . . . Intel | -11 -10 -9 ------- Run | Yrd Mat Mat Active Infowar (turns) 328 | . 265 63 Terrain 328 | . 265 63 Robot Analysis Total . | . . . Derelict Logs Recovered . | . . . Drone Launches . | . . . Drone Recoveries . | . . . Exploration | -11 -10 -9 ------------- Run | Yrd Mat Mat Turns Passed 603 | 65 385 153 Spaces Moved 316 | 44 227 45 Core 49 | 22 . 27 Treads 267 | 22 227 18 Legs . | . . . Wheels . | . . . Hover . | . . . Flight . | . . . Fastest Speed 50 | 50 160 100 Average Speed 156 | 111 160 179 Slowest Speed 200 | 160 160 200 Overloaded Moves . | . . . Propulsion Burnouts . | . . . Robots Hopped . | . . . Potential Cave-ins . | . . . Cave-ins Triggered . | . . . Exploration Rate (%) 17 | 3 41 7 Regions Visited 2 Branch Regions . Pre-discovered Areas . | . . . Known Exits Taken . | . . . Unknown Exits Taken 2 | 1 1 . Scrap Searched . | . . . Spaces Dug . | . . . Terrain Destroyed 4 | . 4 . Melee . | . . . Projectile . | . . . AOE 4 | . 4 . Terrain Rammed . | . . . Walls Destroyed . | . . . Machines Disabled . | . . . Actions | -11 -10 -9 --------- Run | Yrd Mat Mat Total 376 | 58 241 77 Wait 8 | 4 4 . Move 314 | 43 226 45 Hop . | . . . Pick Up 13 | 5 6 2 Fast Attach 3 | 3 . . Attach 10 | 3 1 6 Detach . | . . . Swap 1 | . . 1 Drop . | . . . Fire 27 | . 4 23 Melee . | . . . Ram . | . . . Kick . | . . . Crush . | . . . Escape Stasis . | . . . Rewire . | . . . Trap . | . . . Miscellaneous . | . . . Route ------- -11/Scrapyard -10/Materials (discovered 3 exits: [*Mat x2] / [*Sub]) -9/Materials History --------- Turn | Location | Event 2 | -11/Scrapyard | Met Revision 17 12 | -11/Scrapyard | Discovered new exit (range 16) 66 | -11/Scrapyard | Entered Materials 67 | -10/Materials | Met a group of wandering Federalists 168 | -10/Materials | Discovered new exit (range 4) 301 | -10/Materials | Build established: Mutant 344 | -10/Materials | Discovered new exit (range 9) 419 | -10/Materials | Discovered new exit (range 4) 451 | -10/Materials | Entered another Materials area 451 | -9/Materials | Evolved 2 slots: Power x1, Weapon x1 515 | -9/Materials | Core integrity fell below 50% 543 | -9/Materials | Core integrity fell below 20% 587 | -9/Materials | Lost 9 parts (2p2n1u4w) 604 | -9/Materials | Destroyed by S-10 Pest with Light Assault Rifle Last Messages --------------- K-01 Serf collects debris. M-13 Machinist fits Backup Power I on S-10 Pest. Power failure, Ion Engine shutdown. K-01 Serf collects debris. R-06 Scavenger collects Aluminum Leg. K-01 Serf collects debris. Acquired 60 matter. Ion Engine destroyed. R-06 Scavenger collects Aluminum Leg. Acquired 34 matter. K-01 Serf collects debris. Acquired Sml. Laser. K-01 Serf collects debris. R-06 Scavenger collects Corrupted Imp. Heat Sink. R-06 Scavenger collects Corrupted Heat Sink. S-10 Pest misfires. Flight Unit melted. S-10 Pest destroyed. K-01 Serf collects debris. Map ----- +----------------------------------------------------+ | ?????????????????????????????????????????????????? | | ?????????????????????????????????????????????????? | | ?????????????????????????????????????????????????? | | ?????????????????????????????????????????????????? | | ?????????????????????????????????????????????????? | | ?????????????????????????????????????????????????? | | ?????????????????????????????????????????????????? | | ?????????????????????????????????????????????????? | | ?????????????????????????????????????????????????? | | ?????????????????????????????????????????????????? | | ???????????????????????????? #??????????????????? | | ???????????????????????????? ???????????????????? | | ??????????????????????????? ????????????????????? | | ?????????????????????######/###??????????????????? | | ????????????????????# #??????????????????? | | ????????????????????# * # ?????????????????? | | ????????????????????# #??????#???????????? | | ????????????????????# #??????????????????? | | ????????????????????# #??????????????????? | | ????????????????????# ??????#????????????#?? | | ????????????????????# ??????#??????#????? ??#? | | ????????????????????# ??? ?????????????????????? | | ????????????????????#/#???#######??????#??? ????? | | ???????????????????## ##### ##########+####??? | | ???????????????????# ss ##?? | | ???????????????????# s @ #??? | | ???????????????????# !!! #??? | | ???????????????????# % !! ###+####??? | | ???????????????????######### ! # #??? | | ???????????????????????#???# # #??? | | ???????????????????????????# # """ #??? | | ???????????????????????? + # """ #??? | | ????????????????????? # k # """ #??? | | ?????????????????????? ?# |!! r # #??# | | ??????????????????????###??# ]! ########??? | | ?????????????????????????? ]! ""#?????????? | | ????????????????????????? Y"#?????????? | | ???????????????????????? ""#?????????? | | ??????????????????????? ?#????????? | | ???????????????????????#### %% ????#?????? | | ??????????????????????????### #########?????????? | | ????????????????????????????#% #?????????????????? | | ????????????????????????????# ??????????????????? | | ????????????????????????????? ??????????????????? | | ?????????????????????????????????????????????????? | | ?????????????????????????????????????????????????? | | ?????????????????????????????????????????????????? | | ?????????????????????????????????????????????????? | | ?????????????????????????????????????????????????? | | ?????????????????????????????????????????????????? | +----------------------------------------------------+ Best States ------------- Heat Dissipation 28 Energy Generation 15 Energy Capacity 275 Matter Stores 300 Matter Capacity 300 Sight Range 16 Terrain Scan Range 14 Terrain Scan Density 10 Propulsion Shielding 33 Evasion (%) 50 Recoil Reduction 2 Item Schematics ----------------- None Robot Schematics ------------------ None Fabricated ------------ Nothing Repaired ---------- Nothing Studied --------- None Alien Tech Used ----------------- None Achievements -------------- Well Done You Again Challenges ------------ None Game ------ Seed SuperchargedRingAutobeam Manual? 0 Play Time 00:08:19 Cumulative 6.3 hours Start 2026.03.22 @ 13:39:47 End 2026.03.22 @ 13:46:16 Sessions 1 Manual Loads 0 Difficulty Rogue Special Mode None Game No. 14 Rogue 11 Adventurer 3 Explorer 0 Win Type - Total 0 Types 0/0/0/0/0/0/0/0/0/0 Lore% 1 Gallery% 10 Achievement% 8 Wizard Run 0 Options --------- Layout 1 ASCII 0 Keyboard 0 Movement Mouse Keybinds 0 Fullscreen 1 Font 48/Smallcaps Map View 50x35 Zoom Use 0% Tactical HUD 0 Map Filters NONE Filters NONE Steam 1 RUN: 0bc6d4ec-5e10-46bc-8a72-459be666b029